Workbook

Sheet Poule
A1: MEGA Toernooi 2014 | AY1: =COUNTA(T13:V18) -> 18 | AZ1: =COUNTA(AS13:AU18) -> 18 | BA1: =COUNTA(T26:V31) -> 18 | BB1: =COUNTA(#REF!) -> 1 | BJ1: =VALUE(A6) -> 4 | BK1: =B6 -> PA TEAM 1 | BL1: =VALUE(O6) -> 3 | BM1: =P6 -> PB TEAM 1 | BN1: =VALUE(AD6) -> 2 | BO1: =AE6 -> PC TEAM 1
BJ2: =VALUE(A7) -> 1 | BK2: =B7 -> PA TEAM 2 | BL2: =VALUE(O7) -> 4 | BM2: =P7 -> PB TEAM 2 | BN2: =VALUE(AD7) -> 4 | BO2: =AE7 -> PC TEAM 2
A3: Stand | K3: Gewonnen | L3: Gelijk | M3: Verloren | N3: Saldo | O3: Stand | Z3: Gewonnen | AA3: Gelijk | AB3: Verloren | AC3: Saldo | AD3: Stand | AN3: Gewonnen | AO3: Gelijk | AP3: Verloren | AQ3: Saldo | BJ3: =VALUE(A8) -> 2 | BK3: =B8 -> PA TEAM 3 | BL3: =VALUE(O8) -> 1 | BM3: =P8 -> PB TEAM 3 | BN3: =VALUE(AD8) -> 3 | BO3: =AE8 -> PC TEAM 3
BJ4: =VALUE(A9) -> 3 | BK4: =B9 -> PA TEAM 4 | BL4: =VALUE(O9) -> 2 | BM4: =P9 -> PB TEAM 4 | BN4: =VALUE(AD9) -> 5 | BO4: =AE9 -> PC TEAM 4
B5: Groep 1 | H5: V | I5: T | J5: P | P5: Groep 2 | W5: V | X5: T | Y5: P | AE5: Groep 3 | AK5: V | AL5: T | AM5: P | BN5: =VALUE(AD10) -> 1 | BO5: =AE10 -> PC TEAM 5
A6: =RANK(J6,$J$6:$J$9,0) -> 4 | B6: PA TEAM 1 | H6: =SUMIF($F$13:$K$18,B6,$T$13:$T$18)+SUMIF($M$13:$R$18,B6,$V$13:$V$18) -> 5 | I6: =SUMIF($F$13:$K$18,B6,$V$13:$V$18)+SUMIF($M$13:$R$18,B6,$T$13:$T$18) -> 7 | J6: =(K6*3)+L6+(H6*0.001)-(I6*0.001) -> 0.998 | K6: =SUMPRODUCT(($F$13:$K$18=B6)*($X$13:$X$18=3))+SUMPRODUCT(($M$13:$R$18=B6)*($Z$13:$Z$18=3)) -> 0 | L6: =SUMPRODUCT(($F$13:$K$18=B6)*($X$13:$X$18=1))+SUMPRODUCT(($M$13:$R$18=B6)*($Z$13:$Z$18=1)) -> 1 | M6: =SUMPRODUCT(($F$13:$K$18=B6)*($X$13:$X$18=0))+SUMPRODUCT(($M$13:$R$18=B6)*($Z$13:$Z$18=0)) -> 2 | N6: =H6-I6 -> -2 | O6: =RANK(Y6,$Y$6:$Y$10,0) -> 3 | P6: PB TEAM 1 | W6: =SUMIF($AE$13:$AJ$22,P6,$AS$13:$AS$22)+SUMIF($AL$13:$AQ$22,P6,$AU$13:$AU$22) -> 6 | X6: =SUMIF($AE$13:$AJ$22,P6,$AU$13:$AU$22)+SUMIF($AL$13:$AQ$22,P6,$AS$13:$AS$22) -> 5 | Y6: =(Z6*3)+AA6+(W6*0.001)-(X6*0.001) -> 7.001 | Z6: =SUMPRODUCT(($AE$13:$AJ$22=P6)*($AW$13:$AW$22=3))+SUMPRODUCT(($AL$13:$AQ$22=P6)*($AY$13:$AY$22=3)) -> 2 | AA6: =SUMPRODUCT(($AE$13:$AJ$22=P6)*($AW$13:$AW$22=1))+SUMPRODUCT(($AL$13:$AQ$22=P6)*($AY$13:$AY$22=1)) -> 1 | AB6: =SUMPRODUCT(($AE$13:$AJ$22=P6)*($AW$13:$AW$22=0))+SUMPRODUCT(($AL$13:$AQ$22=P6)*($AY$13:$AY$22=0)) -> 1 | AC6: =W6-X6 -> 1 | AD6: =RANK(AM6,$AM$6:$AM$10,0) -> 2 | AE6: PC TEAM 1 | AK6: =SUMIF($F$26:$K$35,AE6,$T$26:$T$35)+SUMIF($M$26:$R$35,AE6,$V$26:$V$35) -> 24 | AL6: =SUMIF($F$26:$K$35,AE6,$V$26:$V$35)+SUMIF($M$26:$R$35,AE6,$T$26:$T$35) -> 19 | AM6: =(AN6*3)+AO6+(AK6*0.001)-(AL6*0.001) -> 6.005 | AN6: =SUMPRODUCT(($F$26:$K$35=AE6)*($X$26:$X$35=3))+SUMPRODUCT(($M$26:$R$35=AE6)*($Z$26:$Z$35=3)) -> 2 | AO6: =SUMPRODUCT(($F$26:$K$35=AE6)*($X$26:$X$35=1))+SUMPRODUCT(($M$26:$R$35=AE6)*($Z$26:$Z$35=1)) -> 0 | AP6: =SUMPRODUCT(($F$26:$K$35=AE6)*($X$26:$X$35=0))+SUMPRODUCT(($M$26:$R$35=AE6)*($Z$26:$Z$35=0)) -> 2 | AQ6: =AK6-AL6 -> 5
A7: =RANK(J7,$J$6:$J$9,0) -> 1 | B7: PA TEAM 2 | H7: =SUMIF($F$13:$K$18,B7,$T$13:$T$18)+SUMIF($M$13:$R$18,B7,$V$13:$V$18) -> 7 | I7: =SUMIF($F$13:$K$18,B7,$V$13:$V$18)+SUMIF($M$13:$R$18,B7,$T$13:$T$18) -> 4 | J7: =(K7*3)+L7+(H7*0.001)-(I7*0.001) -> 7.003 | K7: =SUMPRODUCT(($F$13:$K$18=B7)*($X$13:$X$18=3))+SUMPRODUCT(($M$13:$R$18=B7)*($Z$13:$Z$18=3)) -> 2 | L7: =SUMPRODUCT(($F$13:$K$18=B7)*($X$13:$X$18=1))+SUMPRODUCT(($M$13:$R$18=B7)*($Z$13:$Z$18=1)) -> 1 | M7: =SUMPRODUCT(($F$13:$K$18=B7)*($X$13:$X$18=0))+SUMPRODUCT(($M$13:$R$18=B7)*($Z$13:$Z$18=0)) -> 0 | N7: =H7-I7 -> 3 | O7: =RANK(Y7,$Y$6:$Y$10,0) -> 4 | P7: PB TEAM 2 | W7: =SUMIF($AE$13:$AJ$22,P7,$AS$13:$AS$22)+SUMIF($AL$13:$AQ$22,P7,$AU$13:$AU$22) -> 5 | X7: =SUMIF($AE$13:$AJ$22,P7,$AU$13:$AU$22)+SUMIF($AL$13:$AQ$22,P7,$AS$13:$AS$22) -> 7 | Y7: =(Z7*3)+AA7+(W7*0.001)-(X7*0.001) -> 2.998 | Z7: =SUMPRODUCT(($AE$13:$AJ$22=P7)*($AW$13:$AW$22=3))+SUMPRODUCT(($AL$13:$AQ$22=P7)*($AY$13:$AY$22=3)) -> 1 | AA7: =SUMPRODUCT(($AE$13:$AJ$22=P7)*($AW$13:$AW$22=1))+SUMPRODUCT(($AL$13:$AQ$22=P7)*($AY$13:$AY$22=1)) -> 0 | AB7: =SUMPRODUCT(($AE$13:$AJ$22=P7)*($AW$13:$AW$22=0))+SUMPRODUCT(($AL$13:$AQ$22=P7)*($AY$13:$AY$22=0)) -> 3 | AC7: =W7-X7 -> -2 | AD7: =RANK(AM7,$AM$6:$AM$10,0) -> 4 | AE7: PC TEAM 2 | AK7: =SUMIF($F$26:$K$35,AE7,$T$26:$T$35)+SUMIF($M$26:$R$35,AE7,$V$26:$V$35) -> 9 | AL7: =SUMIF($F$26:$K$35,AE7,$V$26:$V$35)+SUMIF($M$26:$R$35,AE7,$T$26:$T$35) -> 16 | AM7: =(AN7*3)+AO7+(AK7*0.001)-(AL7*0.001) -> 5.993 | AN7: =SUMPRODUCT(($F$26:$K$35=AE7)*($X$26:$X$35=3))+SUMPRODUCT(($M$26:$R$35=AE7)*($Z$26:$Z$35=3)) -> 2 | AO7: =SUMPRODUCT(($F$26:$K$35=AE7)*($X$26:$X$35=1))+SUMPRODUCT(($M$26:$R$35=AE7)*($Z$26:$Z$35=1)) -> 0 | AP7: =SUMPRODUCT(($F$26:$K$35=AE7)*($X$26:$X$35=0))+SUMPRODUCT(($M$26:$R$35=AE7)*($Z$26:$Z$35=0)) -> 2 | AQ7: =AK7-AL7 -> -7
A8: =RANK(J8,$J$6:$J$9,0) -> 2 | B8: PA TEAM 3 | H8: =SUMIF($F$13:$K$18,B8,$T$13:$T$18)+SUMIF($M$13:$R$18,B8,$V$13:$V$18) -> 6 | I8: =SUMIF($F$13:$K$18,B8,$V$13:$V$18)+SUMIF($M$13:$R$18,B8,$T$13:$T$18) -> 4 | J8: =(K8*3)+L8+(H8*0.001)-(I8*0.001) -> 5.002 | K8: =SUMPRODUCT(($F$13:$K$18=B8)*($X$13:$X$18=3))+SUMPRODUCT(($M$13:$R$18=B8)*($Z$13:$Z$18=3)) -> 1 | L8: =SUMPRODUCT(($F$13:$K$18=B8)*($X$13:$X$18=1))+SUMPRODUCT(($M$13:$R$18=B8)*($Z$13:$Z$18=1)) -> 2 | M8: =SUMPRODUCT(($F$13:$K$18=B8)*($X$13:$X$18=0))+SUMPRODUCT(($M$13:$R$18=B8)*($Z$13:$Z$18=0)) -> 0 | N8: =H8-I8 -> 2 | O8: =RANK(Y8,$Y$6:$Y$10,0) -> 1 | P8: PB TEAM 3 | W8: =SUMIF($AE$13:$AJ$22,P8,$AS$13:$AS$22)+SUMIF($AL$13:$AQ$22,P8,$AU$13:$AU$22) -> 7 | X8: =SUMIF($AE$13:$AJ$22,P8,$AU$13:$AU$22)+SUMIF($AL$13:$AQ$22,P8,$AS$13:$AS$22) -> 5 | Y8: =(Z8*3)+AA8+(W8*0.001)-(X8*0.001) -> 9.002 | Z8: =SUMPRODUCT(($AE$13:$AJ$22=P8)*($AW$13:$AW$22=3))+SUMPRODUCT(($AL$13:$AQ$22=P8)*($AY$13:$AY$22=3)) -> 3 | AA8: =SUMPRODUCT(($AE$13:$AJ$22=P8)*($AW$13:$AW$22=1))+SUMPRODUCT(($AL$13:$AQ$22=P8)*($AY$13:$AY$22=1)) -> 0 | AB8: =SUMPRODUCT(($AE$13:$AJ$22=P8)*($AW$13:$AW$22=0))+SUMPRODUCT(($AL$13:$AQ$22=P8)*($AY$13:$AY$22=0)) -> 1 | AC8: =W8-X8 -> 2 | AD8: =RANK(AM8,$AM$6:$AM$10,0) -> 3 | AE8: PC TEAM 3 | AK8: =SUMIF($F$26:$K$35,AE8,$T$26:$T$35)+SUMIF($M$26:$R$35,AE8,$V$26:$V$35) -> 17 | AL8: =SUMIF($F$26:$K$35,AE8,$V$26:$V$35)+SUMIF($M$26:$R$35,AE8,$T$26:$T$35) -> 17 | AM8: =(AN8*3)+AO8+(AK8*0.001)-(AL8*0.001) -> 6 | AN8: =SUMPRODUCT(($F$26:$K$35=AE8)*($X$26:$X$35=3))+SUMPRODUCT(($M$26:$R$35=AE8)*($Z$26:$Z$35=3)) -> 2 | AO8: =SUMPRODUCT(($F$26:$K$35=AE8)*($X$26:$X$35=1))+SUMPRODUCT(($M$26:$R$35=AE8)*($Z$26:$Z$35=1)) -> 0 | AP8: =SUMPRODUCT(($F$26:$K$35=AE8)*($X$26:$X$35=0))+SUMPRODUCT(($M$26:$R$35=AE8)*($Z$26:$Z$35=0)) -> 2 | AQ8: =AK8-AL8 -> 0 | BV8: Best nummers 2
A9: =RANK(J9,$J$6:$J$9,0) -> 3 | B9: PA TEAM 4 | H9: =SUMIF($F$13:$K$18,B9,$T$13:$T$18)+SUMIF($M$13:$R$18,B9,$V$13:$V$18) -> 6 | I9: =SUMIF($F$13:$K$18,B9,$V$13:$V$18)+SUMIF($M$13:$R$18,B9,$T$13:$T$18) -> 9 | J9: =(K9*3)+L9+(H9*0.001)-(I9*0.001) -> 2.997 | K9: =SUMPRODUCT(($F$13:$K$18=B9)*($X$13:$X$18=3))+SUMPRODUCT(($M$13:$R$18=B9)*($Z$13:$Z$18=3)) -> 1 | L9: =SUMPRODUCT(($F$13:$K$18=B9)*($X$13:$X$18=1))+SUMPRODUCT(($M$13:$R$18=B9)*($Z$13:$Z$18=1)) -> 0 | M9: =SUMPRODUCT(($F$13:$K$18=B9)*($X$13:$X$18=0))+SUMPRODUCT(($M$13:$R$18=B9)*($Z$13:$Z$18=0)) -> 2 | N9: =H9-I9 -> -3 | O9: =RANK(Y9,$Y$6:$Y$10,0) -> 2 | P9: PB TEAM 4 | W9: =SUMIF($AE$13:$AJ$22,P9,$AS$13:$AS$22)+SUMIF($AL$13:$AQ$22,P9,$AU$13:$AU$22) -> 9 | X9: =SUMIF($AE$13:$AJ$22,P9,$AU$13:$AU$22)+SUMIF($AL$13:$AQ$22,P9,$AS$13:$AS$22) -> 2 | Y9: =(Z9*3)+AA9+(W9*0.001)-(X9*0.001) -> 7.007 | Z9: =SUMPRODUCT(($AE$13:$AJ$22=P9)*($AW$13:$AW$22=3))+SUMPRODUCT(($AL$13:$AQ$22=P9)*($AY$13:$AY$22=3)) -> 2 | AA9: =SUMPRODUCT(($AE$13:$AJ$22=P9)*($AW$13:$AW$22=1))+SUMPRODUCT(($AL$13:$AQ$22=P9)*($AY$13:$AY$22=1)) -> 1 | AB9: =SUMPRODUCT(($AE$13:$AJ$22=P9)*($AW$13:$AW$22=0))+SUMPRODUCT(($AL$13:$AQ$22=P9)*($AY$13:$AY$22=0)) -> 1 | AC9: =W9-X9 -> 7 | AD9: =RANK(AM9,$AM$6:$AM$10,0) -> 5 | AE9: PC TEAM 4 | AK9: =SUMIF($F$26:$K$35,AE9,$T$26:$T$35)+SUMIF($M$26:$R$35,AE9,$V$26:$V$35) -> 7 | AL9: =SUMIF($F$26:$K$35,AE9,$V$26:$V$35)+SUMIF($M$26:$R$35,AE9,$T$26:$T$35) -> 19 | AM9: =(AN9*3)+AO9+(AK9*0.001)-(AL9*0.001) -> -0.012 | AN9: =SUMPRODUCT(($F$26:$K$35=AE9)*($X$26:$X$35=3))+SUMPRODUCT(($M$26:$R$35=AE9)*($Z$26:$Z$35=3)) -> 0 | AO9: =SUMPRODUCT(($F$26:$K$35=AE9)*($X$26:$X$35=1))+SUMPRODUCT(($M$26:$R$35=AE9)*($Z$26:$Z$35=1)) -> 0 | AP9: =SUMPRODUCT(($F$26:$K$35=AE9)*($X$26:$X$35=0))+SUMPRODUCT(($M$26:$R$35=AE9)*($Z$26:$Z$35=0)) -> 4 | AQ9: =AK9-AL9 -> -12 | BU9: =RANK(BW9,$BW$9:$BW$11,0) -> 3 | BV9: =VLOOKUP(2,$A$6:$N$9,2,FALSE) -> PA TEAM 3 | BW9: =VLOOKUP(2,$A$6:$N$9,10,FALSE) -> 5.002
O10: =RANK(Y10,$Y$6:$Y$10,0) -> 5 | P10: PB TEAM 5 | W10: =SUMIF($AE$13:$AJ$22,P10,$AS$13:$AS$22)+SUMIF($AL$13:$AQ$22,P10,$AU$13:$AU$22) -> 2 | X10: =SUMIF($AE$13:$AJ$22,P10,$AU$13:$AU$22)+SUMIF($AL$13:$AQ$22,P10,$AS$13:$AS$22) -> 10 | Y10: =(Z10*3)+AA10+(W10*0.001)-(X10*0.001) -> 1.992 | Z10: =SUMPRODUCT(($AE$13:$AJ$22=P10)*($AW$13:$AW$22=3))+SUMPRODUCT(($AL$13:$AQ$22=P10)*($AY$13:$AY$22=3)) -> 0 | AA10: =SUMPRODUCT(($AE$13:$AJ$22=P10)*($AW$13:$AW$22=1))+SUMPRODUCT(($AL$13:$AQ$22=P10)*($AY$13:$AY$22=1)) -> 2 | AB10: =SUMPRODUCT(($AE$13:$AJ$22=P10)*($AW$13:$AW$22=0))+SUMPRODUCT(($AL$13:$AQ$22=P10)*($AY$13:$AY$22=0)) -> 2 | AC10: =W10-X10 -> -8 | AD10: =RANK(AM10,$AM$6:$AM$10,0) -> 1 | AE10: PC TEAM 5 | AK10: =SUMIF($F$26:$K$35,AE10,$T$26:$T$35)+SUMIF($M$26:$R$35,AE10,$V$26:$V$35) -> 20 | AL10: =SUMIF($F$26:$K$35,AE10,$V$26:$V$35)+SUMIF($M$26:$R$35,AE10,$T$26:$T$35) -> 6 | AM10: =(AN10*3)+AO10+(AK10*0.001)-(AL10*0.001) -> 12.014 | AN10: =SUMPRODUCT(($F$26:$K$35=AE10)*($X$26:$X$35=3))+SUMPRODUCT(($M$26:$R$35=AE10)*($Z$26:$Z$35=3)) -> 4 | AO10: =SUMPRODUCT(($F$26:$K$35=AE10)*($X$26:$X$35=1))+SUMPRODUCT(($M$26:$R$35=AE10)*($Z$26:$Z$35=1)) -> 0 | AP10: =SUMPRODUCT(($F$26:$K$35=AE10)*($X$26:$X$35=0))+SUMPRODUCT(($M$26:$R$35=AE10)*($Z$26:$Z$35=0)) -> 0 | AQ10: =AK10-AL10 -> 14 | BU10: =RANK(BW10,$BW$9:$BW$11,0) -> 1 | BV10: =VLOOKUP(2,$O$6:$Y$10,2,FALSE) -> PB TEAM 4 | BW10: =VLOOKUP(2,$O$6:$Y$10,11,FALSE) -> 7.007
BU11: =RANK(BW11,$BW$9:$BW$11,0) -> 2 | BV11: =VLOOKUP(2,$AD$6:$AM$10,2,FALSE) -> PC TEAM 1 | BW11: =VLOOKUP(2,$AD$6:$AM$10,10,FALSE) -> 6.005
C12: Tijd | F12: VELD 1 | T12: Uitslag | X12: Punten | AB12: Tijd | AE12: VELD 2 | AS12: Uitslag | AW12: Punten
C13: 09:00:00 | F13: =B6 -> PA TEAM 1 | L13: -- | M13: =B7 -> PA TEAM 2 | T13: 1 | U13: -- | V13: 2 | X13: =IF(T13="","",IF(T13>V13,3,IF(T13=V13,1,0))) -> 0 | Z13: =IF(V13="","",IF(V13>T13,3,IF(V13=T13,1,0))) -> 3 | AB13: 09:00:00 | AE13: =P6 -> PB TEAM 1 | AK13: -- | AL13: =P7 -> PB TEAM 2 | AS13: 1 | AT13: -- | AU13: 0 | AW13: =IF(AS13="","",IF(AS13>AU13,3,IF(AS13=AU13,1,0))) -> 3 | AY13: =IF(AU13="","",IF(AU13>AS13,3,IF(AU13=AS13,1,0))) -> 0
C14: 09:20:00 | F14: =B8 -> PA TEAM 3 | L14: -- | M14: =B9 -> PA TEAM 4 | T14: 3 | U14: -- | V14: 1 | X14: =IF(T14="","",IF(T14>V14,3,IF(T14=V14,1,0))) -> 3 | Z14: =IF(V14="","",IF(V14>T14,3,IF(V14=T14,1,0))) -> 0 | AB14: 09:20:00 | AE14: =P8 -> PB TEAM 3 | AK14: -- | AL14: =P9 -> PB TEAM 4 | AS14: 1 | AT14: -- | AU14: 0 | AW14: =IF(AS14="","",IF(AS14>AU14,3,IF(AS14=AU14,1,0))) -> 3 | AY14: =IF(AU14="","",IF(AU14>AS14,3,IF(AU14=AS14,1,0))) -> 0
C15: 09:40:00 | F15: =B9 -> PA TEAM 4 | L15: -- | M15: =B6 -> PA TEAM 1 | T15: 3 | U15: -- | V15: 2 | X15: =IF(T15="","",IF(T15>V15,3,IF(T15=V15,1,0))) -> 3 | Z15: 0 | AB15: 09:40:00 | AE15: =P10 -> PB TEAM 5 | AK15: -- | AL15: =P6 -> PB TEAM 1 | AS15: 1 | AT15: -- | AU15: 1 | AW15: =IF(AS15="","",IF(AS15>AU15,3,IF(AS15=AU15,1,0))) -> 1 | AY15: 1
C16: 10:00:00 | F16: =B7 -> PA TEAM 2 | L16: -- | M16: =B8 -> PA TEAM 3 | T16: 1 | U16: -- | V16: 1 | X16: 1 | Z16: 1 | AB16: 10:00:00 | AE16: =P7 -> PB TEAM 2 | AK16: -- | AL16: =P8 -> PB TEAM 3 | AS16: 1 | AT16: -- | AU16: 2 | AW16: 0 | AY16: 3
C17: 10:20:00 | F17: =B7 -> PA TEAM 2 | L17: -- | M17: =B9 -> PA TEAM 4 | T17: 4 | U17: -- | V17: 2 | X17: 3 | Z17: 0 | AB17: 10:20:00 | AE17: =P10 -> PB TEAM 5 | AK17: -- | AL17: =P9 -> PB TEAM 4 | AS17: 1 | AT17: -- | AU17: 1 | AW17: 1 | AY17: 1
C18: 10:40:00 | F18: =B6 -> PA TEAM 1 | L18: -- | M18: =B8 -> PA TEAM 3 | T18: 2 | U18: -- | V18: 2 | X18: 1 | Z18: 1 | AB18: 10:40:00 | AE18: =P6 -> PB TEAM 1 | AK18: -- | AL18: =P8 -> PB TEAM 3 | AS18: 4 | AT18: -- | AU18: 0 | AW18: 3 | AY18: 0
AB19: 10:40:00 | AE19: =P7 -> PB TEAM 2 | AK19: -- | AL19: =P10 -> PB TEAM 5 | AS19: 4 | AT19: -- | AU19: 0 | AW19: =IF(AS19="","",IF(AS19>AU19,3,IF(AS19=AU19,1,0))) -> 3 | AY19: =IF(AU19="","",IF(AU19>AS19,3,IF(AU19=AS19,1,0))) -> 0
AB20: 10:40:00 | AE20: =P9 -> PB TEAM 4 | AK20: -- | AL20: =P6 -> PB TEAM 1 | AS20: 4 | AT20: -- | AU20: 0 | AW20: 3 | AY20: 0
AB21: 10:40:00 | AE21: =P8 -> PB TEAM 3 | AK21: -- | AL21: =P10 -> PB TEAM 5 | AS21: 4 | AT21: -- | AU21: 0 | AW21: 3 | AY21: 0
AB22: 10:40:00 | AE22: =P9 -> PB TEAM 4 | AK22: -- | AL22: =P7 -> PB TEAM 2 | AS22: 4 | AT22: -- | AU22: 0 | AW22: 3 | AY22: 0
C25: Tijd | F25: VELD 3 | T25: Uitslag | X25: Punten
C26: 09:00:00 | F26: =AE6 -> PC TEAM 1 | L26: -- | M26: =AE7 -> PC TEAM 2 | T26: 9 | U26: -- | V26: 2 | X26: =IF(T26="","",IF(T26>V26,3,IF(T26=V26,1,0))) -> 3 | Z26: =IF(V26="","",IF(V26>T26,3,IF(V26=T26,1,0))) -> 0
C27: 09:20:00 | F27: =AE8 -> PC TEAM 3 | L27: -- | M27: =AE9 -> PC TEAM 4 | T27: 8 | U27: -- | V27: 4 | X27: =IF(T27="","",IF(T27>V27,3,IF(T27=V27,1,0))) -> 3 | Z27: =IF(V27="","",IF(V27>T27,3,IF(V27=T27,1,0))) -> 0
C28: 09:40:00 | F28: =AE10 -> PC TEAM 5 | L28: -- | M28: =AE6 -> PC TEAM 1 | T28: 7 | U28: -- | V28: 5 | X28: =IF(T28="","",IF(T28>V28,3,IF(T28=V28,1,0))) -> 3 | Z28: 0
C29: 10:00:00 | F29: =AE7 -> PC TEAM 2 | L29: -- | M29: =AE8 -> PC TEAM 3 | T29: 4 | U29: -- | V29: 1 | X29: 3 | Z29: 0
C30: 10:20:00 | F30: =AE10 -> PC TEAM 5 | L30: -- | M30: =AE9 -> PC TEAM 4 | T30: 5 | U30: -- | V30: 0 | X30: 3 | Z30: 0
C31: 10:40:00 | F31: =AE6 -> PC TEAM 1 | L31: -- | M31: =AE8 -> PC TEAM 3 | T31: 6 | U31: -- | V31: 8 | X31: 0 | Z31: 3
C32: 11:00:00 | F32: =AE7 -> PC TEAM 2 | L32: -- | M32: =AE10 -> PC TEAM 5 | T32: 1 | U32: -- | V32: 5 | X32: 0 | Z32: 3
C33: 11:20:00 | F33: =AE9 -> PC TEAM 4 | L33: -- | M33: =AE6 -> PC TEAM 1 | T33: 2 | U33: -- | V33: 4 | X33: 0 | Z33: 3
C34: 11:40:00 | F34: =AE8 -> PC TEAM 3 | L34: -- | M34: =AE10 -> PC TEAM 5 | T34: 0 | U34: -- | V34: 3 | X34: 0 | Z34: 3
C35: 12:00:00 | F35: =AE9 -> PC TEAM 4 | L35: -- | M35: =AE7 -> PC TEAM 2 | T35: 1 | U35: -- | V35: 2 | X35: 0 | Z35: 3

Sheet Finale's
F1: Halve finale
J2: HAL 1 | Z2: HAL 1
C3: 20:50:00 | E3: E | F3: Nr 1 groep 1 | K3: Nr 1 groep 3 | O3: Scheidsrechter | S3: 21:07:00 | U3: F | V3: Nr 1 groep 2 | AA3: Beste nummer 2 | AE3: Scheidsrechter
F4: =VLOOKUP(1,Poule!A6:G9,2,0) -> PA TEAM 2 | K4: =VLOOKUP(1,Poule!AD6:AJ10,2,0) -> PC TEAM 5 | O4: EW | Q4: - | V4: =VLOOKUP(1,Poule!O6:V9,2,0) -> PB TEAM 3 | AA4: =VLOOKUP(1,Poule!BU9:BV11,2,0) -> PB TEAM 4 | AE4: PD | AG4: -
F6: Finale
R7: HAL 1
J8: 21:25:00 | N8: Winnaar E | S8: Winnaar F
N9: =IF(P4="","",IF(P4>R4,F4,K4)) ->  | S9: =IF(AF4="","",IF(AF4>AH4,V4,AA4)) ->  | Y9: - | AE9: Scheidsrechter
AE10: Mario van der Ende
O11: Winnaar MEGA toernooi
O13: =IF(X9="","",IF(X9>Z9,N9,S9)) -> 

Sheet GROEP-1
A1: MEGA TOERNOOI | O1: Scores By: OnlineExcelCursus.NL
A4: =Poule!C12 -> Tijd | B4: =Poule!D12 -> 0 | C4: =Poule!F12 -> VELD 1 | H4: =Poule!T12 -> Uitslag | L4: =Poule!X12 -> Punten
A5: =Poule!C13 -> 09:00:00 | B5: =Poule!D13 -> 00:00:00 | C5: =Poule!F13 -> PA TEAM 1 | D5: =Poule!G13 -> 0 | E5: =Poule!L13 -> -- | F5: =Poule!M13 -> PA TEAM 2 | G5: =Poule!N13 -> 0 | H5: =Poule!T13 -> 1 | I5: =Poule!U13 -> -- | J5: =Poule!V13 -> 2 | L5: =Poule!X13 -> 0 | N5: =Poule!Z13 -> 3
A6: =Poule!C14 -> 09:20:00 | B6: =Poule!D14 -> 00:00:00 | C6: =Poule!F14 -> PA TEAM 3 | D6: =Poule!G14 -> 0 | E6: =Poule!L14 -> -- | F6: =Poule!M14 -> PA TEAM 4 | G6: =Poule!N14 -> 0 | H6: =Poule!T14 -> 3 | I6: =Poule!U14 -> -- | J6: =Poule!V14 -> 1 | L6: =Poule!X14 -> 3 | N6: =Poule!Z14 -> 0
A7: =Poule!C15 -> 09:40:00 | B7: =Poule!D15 -> 00:00:00 | C7: =Poule!F15 -> PA TEAM 4 | D7: =Poule!G15 -> 0 | E7: =Poule!L15 -> -- | F7: =Poule!M15 -> PA TEAM 1 | G7: =Poule!N15 -> 0 | H7: =Poule!T15 -> 3 | I7: =Poule!U15 -> -- | J7: =Poule!V15 -> 2 | L7: =Poule!X15 -> 3 | N7: =Poule!Z15 -> 0
A8: =Poule!C16 -> 10:00:00 | B8: =Poule!D16 -> 00:00:00 | C8: =Poule!F16 -> PA TEAM 2 | D8: =Poule!G16 -> 0 | E8: =Poule!L16 -> -- | F8: =Poule!M16 -> PA TEAM 3 | G8: =Poule!N16 -> 0 | H8: =Poule!T16 -> 1 | I8: =Poule!U16 -> -- | J8: =Poule!V16 -> 1 | L8: =Poule!X16 -> 1 | N8: =Poule!Z16 -> 1
A9: =Poule!C17 -> 10:20:00 | B9: =Poule!D17 -> 00:00:00 | C9: =Poule!F17 -> PA TEAM 2 | D9: =Poule!G17 -> 0 | E9: =Poule!L17 -> -- | F9: =Poule!M17 -> PA TEAM 4 | G9: =Poule!N17 -> 0 | H9: =Poule!T17 -> 4 | I9: =Poule!U17 -> -- | J9: =Poule!V17 -> 2 | L9: =Poule!X17 -> 3 | N9: =Poule!Z17 -> 0
A10: =Poule!C18 -> 10:40:00 | B10: =Poule!D18 -> 00:00:00 | C10: =Poule!F18 -> PA TEAM 1 | D10: =Poule!G18 -> 0 | E10: =Poule!L18 -> -- | F10: =Poule!M18 -> PA TEAM 3 | G10: =Poule!N18 -> 0 | H10: =Poule!T18 -> 2 | I10: =Poule!U18 -> -- | J10: =Poule!V18 -> 2 | L10: =Poule!X18 -> 1 | N10: =Poule!Z18 -> 1
A13: =Poule!A3 -> Stand | B13: =Poule!B5 -> Groep 1 | H13: =Poule!H5 -> V | I13: =Poule!I5 -> T | J13: =Poule!J5 -> P | K13: =Poule!K3 -> Gewonnen | L13: =Poule!L3 -> Gelijk | M13: =Poule!M3 -> Verloren | N13: =Poule!N3 -> Saldo
A14: =Poule!A4 -> 0 | K14: =Poule!K4 -> 0 | L14: =Poule!L4 -> 0 | M14: =Poule!M4 -> 0 | N14: =Poule!N4 -> 0
A15: =Poule!A5 -> 0 | K15: =Poule!K5 -> 0 | L15: =Poule!L5 -> 0 | M15: =Poule!M5 -> 0 | N15: =Poule!N5 -> 0
A16: =Poule!A6 -> 4 | B16: =Poule!B6 -> PA TEAM 1 | C16: =Poule!C6 -> 0 | D16: =Poule!D6 -> 0 | E16: =Poule!E6 -> 0 | F16: =Poule!F6 -> 0 | G16: =Poule!G6 -> 0 | H16: =Poule!H6 -> 5 | I16: =Poule!I6 -> 7 | J16: =Poule!J6 -> 0.998 | K16: =Poule!K6 -> 0 | L16: =Poule!L6 -> 1 | M16: =Poule!M6 -> 2 | N16: =Poule!N6 -> -2
A17: =Poule!A7 -> 1 | B17: =Poule!B7 -> PA TEAM 2 | C17: =Poule!C7 -> 0 | D17: =Poule!D7 -> 0 | E17: =Poule!E7 -> 0 | F17: =Poule!F7 -> 0 | G17: =Poule!G7 -> 0 | H17: =Poule!H7 -> 7 | I17: =Poule!I7 -> 4 | J17: =Poule!J7 -> 7.003 | K17: =Poule!K7 -> 2 | L17: =Poule!L7 -> 1 | M17: =Poule!M7 -> 0 | N17: =Poule!N7 -> 3
A18: =Poule!A8 -> 2 | B18: =Poule!B8 -> PA TEAM 3 | C18: =Poule!C8 -> 0 | D18: =Poule!D8 -> 0 | E18: =Poule!E8 -> 0 | F18: =Poule!F8 -> 0 | G18: =Poule!G8 -> 0 | H18: =Poule!H8 -> 6 | I18: =Poule!I8 -> 4 | J18: =Poule!J8 -> 5.002 | K18: =Poule!K8 -> 1 | L18: =Poule!L8 -> 2 | M18: =Poule!M8 -> 0 | N18: =Poule!N8 -> 2
A19: =Poule!A9 -> 3 | B19: =Poule!B9 -> PA TEAM 4 | C19: =Poule!C9 -> 0 | D19: =Poule!D9 -> 0 | E19: =Poule!E9 -> 0 | F19: =Poule!F9 -> 0 | G19: =Poule!G9 -> 0 | H19: =Poule!H9 -> 6 | I19: =Poule!I9 -> 9 | J19: =Poule!J9 -> 2.997 | K19: =Poule!K9 -> 1 | L19: =Poule!L9 -> 0 | M19: =Poule!M9 -> 2 | N19: =Poule!N9 -> -3

Sheet GROEP-2
A1: MEGA TOERNOOI | M1: Scores By: OnlineExcelCursus.NL
A4: =Poule!AB12 -> Tijd | C4: =Poule!AE12 -> VELD 2 | F4: =Poule!AS12 -> Uitslag | J4: =Poule!AW12 -> Punten
A5: =Poule!AB13 -> 09:00:00 | B5: =Poule!AC13 -> 00:00:00 | C5: =Poule!AE13 -> PB TEAM 1 | D5: =Poule!AK13 -> -- | E5: =Poule!AL13 -> PB TEAM 2 | F5: =Poule!AS13 -> 1 | G5: =Poule!AT13 -> -- | H5: =Poule!AU13 -> 0 | J5: =Poule!AW13 -> 3 | L5: =Poule!AY13 -> 0
A6: =Poule!AB14 -> 09:20:00 | B6: =Poule!AC14 -> 00:00:00 | C6: =Poule!AE14 -> PB TEAM 3 | D6: =Poule!AK14 -> -- | E6: =Poule!AL14 -> PB TEAM 4 | F6: =Poule!AS14 -> 1 | G6: =Poule!AT14 -> -- | H6: =Poule!AU14 -> 0 | J6: =Poule!AW14 -> 3 | L6: =Poule!AY14 -> 0
A7: =Poule!AB15 -> 09:40:00 | B7: =Poule!AC15 -> 00:00:00 | C7: =Poule!AE15 -> PB TEAM 5 | D7: =Poule!AK15 -> -- | E7: =Poule!AL15 -> PB TEAM 1 | F7: =Poule!AS15 -> 1 | G7: =Poule!AT15 -> -- | H7: =Poule!AU15 -> 1 | J7: =Poule!AW15 -> 1 | L7: =Poule!AY15 -> 1
A8: =Poule!AB16 -> 10:00:00 | B8: =Poule!AC16 -> 00:00:00 | C8: =Poule!AE16 -> PB TEAM 2 | D8: =Poule!AK16 -> -- | E8: =Poule!AL16 -> PB TEAM 3 | F8: =Poule!AS16 -> 1 | G8: =Poule!AT16 -> -- | H8: =Poule!AU16 -> 2 | J8: =Poule!AW16 -> 0 | L8: =Poule!AY16 -> 3
A9: =Poule!AB17 -> 10:20:00 | B9: =Poule!AC17 -> 00:00:00 | C9: =Poule!AE17 -> PB TEAM 5 | D9: =Poule!AK17 -> -- | E9: =Poule!AL17 -> PB TEAM 4 | F9: =Poule!AS17 -> 1 | G9: =Poule!AT17 -> -- | H9: =Poule!AU17 -> 1 | J9: =Poule!AW17 -> 1 | L9: =Poule!AY17 -> 1
A10: =Poule!AB18 -> 10:40:00 | B10: =Poule!AC18 -> 00:00:00 | C10: =Poule!AE18 -> PB TEAM 1 | D10: =Poule!AK18 -> -- | E10: =Poule!AL18 -> PB TEAM 3 | F10: =Poule!AS18 -> 4 | G10: =Poule!AT18 -> -- | H10: =Poule!AU18 -> 0 | J10: =Poule!AW18 -> 3 | L10: =Poule!AY18 -> 0
A11: =Poule!AB19 -> 10:40:00 | B11: =Poule!AC19 -> 00:00:00 | C11: =Poule!AE19 -> PB TEAM 2 | D11: =Poule!AK19 -> -- | E11: =Poule!AL19 -> PB TEAM 5 | F11: =Poule!AS19 -> 4 | G11: =Poule!AT19 -> -- | H11: =Poule!AU19 -> 0 | J11: =Poule!AW19 -> 3 | L11: =Poule!AY19 -> 0
A12: =Poule!AB20 -> 10:40:00 | B12: =Poule!AC20 -> 00:00:00 | C12: =Poule!AE20 -> PB TEAM 4 | D12: =Poule!AK20 -> -- | E12: =Poule!AL20 -> PB TEAM 1 | F12: =Poule!AS20 -> 4 | G12: =Poule!AT20 -> -- | H12: =Poule!AU20 -> 0 | J12: =Poule!AW20 -> 3 | L12: =Poule!AY20 -> 0
A13: =Poule!AB21 -> 10:40:00 | B13: =Poule!AC21 -> 00:00:00 | C13: =Poule!AE21 -> PB TEAM 3 | D13: =Poule!AK21 -> -- | E13: =Poule!AL21 -> PB TEAM 5 | F13: =Poule!AS21 -> 4 | G13: =Poule!AT21 -> -- | H13: =Poule!AU21 -> 0 | J13: =Poule!AW21 -> 3 | L13: =Poule!AY21 -> 0
A14: =Poule!AB22 -> 10:40:00 | B14: =Poule!AC22 -> 00:00:00 | C14: =Poule!AE22 -> PB TEAM 4 | D14: =Poule!AK22 -> -- | E14: =Poule!AL22 -> PB TEAM 2 | F14: =Poule!AS22 -> 4 | G14: =Poule!AT22 -> -- | H14: =Poule!AU22 -> 0 | J14: =Poule!AW22 -> 3 | L14: =Poule!AY22 -> 0
A18: =Poule!O3 -> Stand | B18: =Poule!P5 -> Groep 2 | F18: =Poule!W5 -> V | G18: =Poule!X5 -> T | H18: =Poule!Y5 -> P | I18: =Poule!Z3 -> Gewonnen | J18: =Poule!AA3 -> Gelijk | K18: =Poule!AB3 -> Verloren | L18: =Poule!AC3 -> Saldo
A19: =Poule!O4 -> 0 | I19: =Poule!Z4 -> 0 | J19: =Poule!AA4 -> 0 | K19: =Poule!AB4 -> 0 | L19: =Poule!AC4 -> 0
A20: =Poule!O5 -> 0 | I20: =Poule!Z5 -> 0 | J20: =Poule!AA5 -> 0 | K20: =Poule!AB5 -> 0 | L20: =Poule!AC5 -> 0
A21: =Poule!O6 -> 3 | B21: =Poule!P6 -> PB TEAM 1 | F21: =Poule!W6 -> 6 | G21: =Poule!X6 -> 5 | H21: =Poule!Y6 -> 7.001 | I21: =Poule!Z6 -> 2 | J21: =Poule!AA6 -> 1 | K21: =Poule!AB6 -> 1 | L21: =Poule!AC6 -> 1
A22: =Poule!O7 -> 4 | B22: =Poule!P7 -> PB TEAM 2 | F22: =Poule!W7 -> 5 | G22: =Poule!X7 -> 7 | H22: =Poule!Y7 -> 2.998 | I22: =Poule!Z7 -> 1 | J22: =Poule!AA7 -> 0 | K22: =Poule!AB7 -> 3 | L22: =Poule!AC7 -> -2
A23: =Poule!O8 -> 1 | B23: =Poule!P8 -> PB TEAM 3 | F23: =Poule!W8 -> 7 | G23: =Poule!X8 -> 5 | H23: =Poule!Y8 -> 9.002 | I23: =Poule!Z8 -> 3 | J23: =Poule!AA8 -> 0 | K23: =Poule!AB8 -> 1 | L23: =Poule!AC8 -> 2
A24: =Poule!O9 -> 2 | B24: =Poule!P9 -> PB TEAM 4 | F24: =Poule!W9 -> 9 | G24: =Poule!X9 -> 2 | H24: =Poule!Y9 -> 7.007 | I24: =Poule!Z9 -> 2 | J24: =Poule!AA9 -> 1 | K24: =Poule!AB9 -> 1 | L24: =Poule!AC9 -> 7
A25: =Poule!O10 -> 5 | B25: =Poule!P10 -> PB TEAM 5 | F25: =Poule!W10 -> 2 | G25: =Poule!X10 -> 10 | H25: =Poule!Y10 -> 1.992 | I25: =Poule!Z10 -> 0 | J25: =Poule!AA10 -> 2 | K25: =Poule!AB10 -> 2 | L25: =Poule!AC10 -> -8

Sheet GROEP-3
A1: MEGA TOERNOOI | M1: Scores By: OnlineExcelCursus.NL
A4: =Poule!C25 -> Tijd | B4: =Poule!D25 -> 0 | C4: =Poule!F25 -> VELD 3 | F4: =Poule!T25 -> Uitslag | G4: =Poule!U25 -> 0 | H4: =Poule!V25 -> 0 | J4: =Poule!X25 -> Punten
A5: =Poule!C26 -> 09:00:00 | B5: =Poule!D26 -> 00:00:00 | C5: =Poule!F26 -> PC TEAM 1 | D5: =Poule!L26 -> -- | E5: =Poule!M26 -> PC TEAM 2 | F5: =Poule!T26 -> 9 | G5: =Poule!U26 -> -- | H5: =Poule!V26 -> 2 | J5: =Poule!X26 -> 3 | L5: =Poule!Z26 -> 0
A6: =Poule!C27 -> 09:20:00 | B6: =Poule!D27 -> 00:00:00 | C6: =Poule!F27 -> PC TEAM 3 | D6: =Poule!L27 -> -- | E6: =Poule!M27 -> PC TEAM 4 | F6: =Poule!T27 -> 8 | G6: =Poule!U27 -> -- | H6: =Poule!V27 -> 4 | J6: =Poule!X27 -> 3 | L6: =Poule!Z27 -> 0
A7: =Poule!C28 -> 09:40:00 | B7: =Poule!D28 -> 00:00:00 | C7: =Poule!F28 -> PC TEAM 5 | D7: =Poule!L28 -> -- | E7: =Poule!M28 -> PC TEAM 1 | F7: =Poule!T28 -> 7 | G7: =Poule!U28 -> -- | H7: =Poule!V28 -> 5 | J7: =Poule!X28 -> 3 | L7: =Poule!Z28 -> 0
A8: =Poule!C29 -> 10:00:00 | B8: =Poule!D29 -> 00:00:00 | C8: =Poule!F29 -> PC TEAM 2 | D8: =Poule!L29 -> -- | E8: =Poule!M29 -> PC TEAM 3 | F8: =Poule!T29 -> 4 | G8: =Poule!U29 -> -- | H8: =Poule!V29 -> 1 | J8: =Poule!X29 -> 3 | L8: =Poule!Z29 -> 0
A9: =Poule!C30 -> 10:20:00 | B9: =Poule!D30 -> 00:00:00 | C9: =Poule!F30 -> PC TEAM 5 | D9: =Poule!L30 -> -- | E9: =Poule!M30 -> PC TEAM 4 | F9: =Poule!T30 -> 5 | G9: =Poule!U30 -> -- | H9: =Poule!V30 -> 0 | J9: =Poule!X30 -> 3 | L9: =Poule!Z30 -> 0
A10: =Poule!C31 -> 10:40:00 | B10: =Poule!D31 -> 00:00:00 | C10: =Poule!F31 -> PC TEAM 1 | D10: =Poule!L31 -> -- | E10: =Poule!M31 -> PC TEAM 3 | F10: =Poule!T31 -> 6 | G10: =Poule!U31 -> -- | H10: =Poule!V31 -> 8 | J10: =Poule!X31 -> 0 | L10: =Poule!Z31 -> 3
A11: =Poule!C32 -> 11:00:00 | B11: =Poule!D32 -> 00:00:00 | C11: =Poule!F32 -> PC TEAM 2 | D11: =Poule!L32 -> -- | E11: =Poule!M32 -> PC TEAM 5 | F11: =Poule!T32 -> 1 | G11: =Poule!U32 -> -- | H11: =Poule!V32 -> 5 | J11: =Poule!X32 -> 0 | L11: =Poule!Z32 -> 3
A12: =Poule!C33 -> 11:20:00 | B12: =Poule!D33 -> 00:00:00 | C12: =Poule!F33 -> PC TEAM 4 | D12: =Poule!L33 -> -- | E12: =Poule!M33 -> PC TEAM 1 | F12: =Poule!T33 -> 2 | G12: =Poule!U33 -> -- | H12: =Poule!V33 -> 4 | J12: =Poule!X33 -> 0 | L12: =Poule!Z33 -> 3
A13: =Poule!C34 -> 11:40:00 | B13: =Poule!D34 -> 00:00:00 | C13: =Poule!F34 -> PC TEAM 3 | D13: =Poule!L34 -> -- | E13: =Poule!M34 -> PC TEAM 5 | F13: =Poule!T34 -> 0 | G13: =Poule!U34 -> -- | H13: =Poule!V34 -> 3 | J13: =Poule!X34 -> 0 | L13: =Poule!Z34 -> 3
A14: =Poule!C35 -> 12:00:00 | B14: =Poule!D35 -> 00:00:00 | C14: =Poule!F35 -> PC TEAM 4 | D14: =Poule!L35 -> -- | E14: =Poule!M35 -> PC TEAM 2 | F14: =Poule!T35 -> 1 | G14: =Poule!U35 -> -- | H14: =Poule!V35 -> 2 | J14: =Poule!X35 -> 0 | L14: =Poule!Z35 -> 3
A17: =Poule!AD3 -> Stand | B17: =Poule!AE5 -> Groep 3 | F17: =Poule!AK5 -> V | G17: =Poule!AL5 -> T | H17: =Poule!AM5 -> P | I17: =Poule!AN3 -> Gewonnen | J17: =Poule!AO3 -> Gelijk | K17: =Poule!AP3 -> Verloren | L17: =Poule!AQ3 -> Saldo
A18: =Poule!AD4 -> 0 | I18: =Poule!AN4 -> 0 | J18: =Poule!AO4 -> 0 | K18: =Poule!AP4 -> 0 | L18: =Poule!AQ4 -> 0
A19: =Poule!AD5 -> 0 | I19: =Poule!AN5 -> 0 | J19: =Poule!AO5 -> 0 | K19: =Poule!AP5 -> 0 | L19: =Poule!AQ5 -> 0
A20: =Poule!AD6 -> 2 | B20: =Poule!AE6 -> PC TEAM 1 | F20: =Poule!AK6 -> 24 | G20: =Poule!AL6 -> 19 | H20: =Poule!AM6 -> 6.005 | I20: =Poule!AN6 -> 2 | J20: =Poule!AO6 -> 0 | K20: =Poule!AP6 -> 2 | L20: =Poule!AQ6 -> 5
A21: =Poule!AD7 -> 4 | B21: =Poule!AE7 -> PC TEAM 2 | F21: =Poule!AK7 -> 9 | G21: =Poule!AL7 -> 16 | H21: =Poule!AM7 -> 5.993 | I21: =Poule!AN7 -> 2 | J21: =Poule!AO7 -> 0 | K21: =Poule!AP7 -> 2 | L21: =Poule!AQ7 -> -7
A22: =Poule!AD8 -> 3 | B22: =Poule!AE8 -> PC TEAM 3 | F22: =Poule!AK8 -> 17 | G22: =Poule!AL8 -> 17 | H22: =Poule!AM8 -> 6 | I22: =Poule!AN8 -> 2 | J22: =Poule!AO8 -> 0 | K22: =Poule!AP8 -> 2 | L22: =Poule!AQ8 -> 0
A23: =Poule!AD9 -> 5 | B23: =Poule!AE9 -> PC TEAM 4 | F23: =Poule!AK9 -> 7 | G23: =Poule!AL9 -> 19 | H23: =Poule!AM9 -> -0.012 | I23: =Poule!AN9 -> 0 | J23: =Poule!AO9 -> 0 | K23: =Poule!AP9 -> 4 | L23: =Poule!AQ9 -> -12
A24: =Poule!AD10 -> 1 | B24: =Poule!AE10 -> PC TEAM 5 | F24: =Poule!AK10 -> 20 | G24: =Poule!AL10 -> 6 | H24: =Poule!AM10 -> 12.014 | I24: =Poule!AN10 -> 4 | J24: =Poule!AO10 -> 0 | K24: =Poule!AP10 -> 0 | L24: =Poule!AQ10 -> 14
